bitfinex/quotes_BTCUSD_20250910
["timestamp","ask_amount","ask_price","bid_price","bid_amount"]
[1757515402279,1.28834511,114070.0,114060.0,0.15108]
[1757515402478,1.27191972,114070.0,114060.0,0.15008]
[1757515402689,1.26891972,114070.0,114060.0,0.15008]
[1757515403100,1.27491972,114070.0,114060.0,0.15008]
[1757515403484,1.27291972,114070.0,114060.0,0.15008]
[1757515404078,1.2923355,114070.0,114060.0,0.15008]
[1757515404682,0.1753463,114060.0,114050.0,0.15018]
[1757515404892,0.5647464,114060.0,114050.0,0.15018]
[1757515405181,0.67867758,114060.0,114050.0,0.15018]
[1757515405406,0.70499798,114060.0,114050.0,0.15018]
[1757515405774,0.89867803,114060.0,114050.0,0.15018]
[1757515406218,0.90167803,114060.0,114050.0,0.15018]
[1757515406433,0.70999798,114060.0,114050.0,0.15018]
[1757515407006,0.6224668,114060.0,114050.0,0.15018]
[1757515407279,0.2118467,114060.0,114050.0,0.15018]
[1757515407430,0.5992068,114060.0,114050.0,0.15018]
[1757515410895,0.2118467,114060.0,114050.0,0.15018]
[1757515411089,0.5992068,114060.0,114050.0,0.15018]
[1757515411291,0.68673798,114060.0,114050.0,0.15018]
[1757515412251,0.2118467,114060.0,114050.0,0.15018]
[1757515412462,0.5728864,114060.0,114050.0,0.15018]
[1757515413611,0.00704,114060.0,114050.0,0.41725722]
[1757515413808,0.20072005,114060.0,114050.0,0.4150652]
[1757515414019,0.20380005,114060.0,114050.0,0.4150652]
[1757515414462,0.37714635,114060.0,114050.0,0.4150652]
[1757515414645,0.37414635,114060.0,114050.0,0.2649852]
[1757515414906,0.37414635,114060.0,114050.0,0.8150652]
[1757515415088,0.37514635,114060.0,114050.0,0.8150652]
[1757515415770,0.001,114060.0,114050.0,0.8182752]
[1757515415998,0.001,114060.0,114050.0,0.8409652]
[1757515416704,0.002,114060.0,114050.0,0.8409652]
[1757515416926,0.002,114060.0,114050.0,0.90380799]
[1757515417369,0.001,114060.0,114050.0,0.90380799]
[1757515417793,0.001,114060.0,114050.0,1.3809652]
[1757515418016,0.001,114060.0,114050.0,1.45954103]
[1757515418198,0.00012353,114070.0,114060.0,0.1753463]
[1757515418415,0.00012353,114070.0,114060.0,0.35378117]
[1757515418625,0.00012353,114070.0,114060.0,0.35358935]
[1757515418833,0.00012353,114070.0,114060.0,0.75358935]
[1757515420317,0.00012353,114070.0,114060.0,0.90362935]
[1757515421163,0.00012353,114070.0,114060.0,0.84080982]
[1757515421760,0.00012353,114070.0,114060.0,0.90362935]
[1757515422383,0.00012353,114070.0,114060.0,0.75358935]
[1757515422648,0.00012353,114070.0,114060.0,0.84080982]
[1757515423762,0.00012353,114070.0,114060.0,0.69076982]
[1757515423995,0.00012353,114070.0,114060.0,0.84080982]
[1757515424439,0.00012353,114070.0,114060.0,0.84076982]
[1757515424625,0.00012353,114070.0,114060.0,0.68755982]
[1757515424840,0.00012353,114070.0,114060.0,0.83755982]
[1757515425954,0.00012353,114070.0,114060.0,0.68755982]
[1757515426173,0.00534353,114070.0,114060.0,0.68755982]
[1757515426448,0.19902358,114070.0,114060.0,0.81486982]
[1757515427134,0.19594358,114070.0,114060.0,0.81486982]
[1757515427580,0.19380358,114070.0,114060.0,0.81486982]
[1757515428104,0.00012353,114070.0,114060.0,0.81486982]
[1757515428946,0.00012353,114070.0,114060.0,0.84076982]
[1757515429805,0.00012353,114070.0,114060.0,0.83755982]
[1757515430263,0.18067446,114070.0,114060.0,0.68755982]
[1757515430489,0.18067446,114070.0,114060.0,0.83755982]
[1757515430698,0.17759446,114070.0,114060.0,0.83755982]
[1757515432190,0.37435451,114070.0,114060.0,0.81286982]
[1757515432630,0.37435451,114070.0,114060.0,0.48752352]
[1757515432926,0.37435451,114070.0,114060.0,0.70484352]
[1757515433128,0.37435451,114070.0,114060.0,0.30484352]
[1757515433784,0.18067446,114070.0,114060.0,0.30484352]
[1757515434015,0.37535451,114070.0,114060.0,0.30484352]
[1757515434453,0.37635451,114070.0,114060.0,0.30484352]
[1757515435098,0.37635451,114070.0,114060.0,0.21732]
[1757515436184,0.18267446,114070.0,114060.0,0.21732]
[1757515436634,0.37635451,114070.0,114060.0,0.21732]
[1757515436857,0.18267446,114070.0,114060.0,0.21732]
[1757515437069,0.37635451,114070.0,114060.0,0.21732]
[1757515438401,0.18267446,114070.0,114060.0,0.7926663]
[1757515438656,0.37635451,114070.0,114060.0,0.7926663]
[1757515438872,0.37635451,114070.0,114060.0,0.61732]
[1757515439335,0.37635451,114070.0,114060.0,0.21732]
[1757515439765,0.37635451,114070.0,114060.0,0.61732]
[1757515440207,0.37635451,114070.0,114060.0,0.7926663]
[1757515441298,0.37635451,114070.0,114060.0,0.7947463]
[1757515441437,0.00212353,114070.0,114060.0,0.7947463]
[1757515441660,0.19580358,114070.0,114060.0,0.7947463]
[1757515441884,0.19580358,114070.0,114060.0,0.88226982]
[1757515442094,0.00212353,114070.0,114060.0,0.88226982]
[1757515442314,0.00732353,114070.0,114060.0,0.88226982]
[1757515442522,0.00212353,114070.0,114060.0,0.88226982]
[1757515442738,0.00212353,114070.0,114060.0,0.90787982]
[1757515443173,0.17745446,114070.0,114060.0,0.90493982]
[1757515443520,0.00212353,114070.0,114060.0,0.90787982]
[1757515443734,0.00012353,114070.0,114060.0,0.90787982]
[1757515443953,0.00012353,114070.0,114060.0,0.90493982]
[1757515444707,0.00012353,114070.0,114060.0,0.90787982]
[1757515445134,0.00012353,114070.0,114060.0,0.96775935]
[1757515446052,0.00012353,114070.0,114060.0,0.97069935]
[1757515447807,0.00012353,114070.0,114060.0,1.59787982]
[1757515448023,0.00012353,114070.0,114060.0,1.67645565]
[1757515448225,0.00012353,114070.0,114060.0,1.67655565]
[1757515449088,2.904e-05,114070.0,114060.0,1.59897982]
[1757515449753,2.904e-05,114070.0,114060.0,1.59997982]
[1757515449976,2.904e-05,114070.0,114060.0,1.78411256]
[1757515450195,2.904e-05,114070.0,114060.0,1.7241064]
[1757515450430,2.904e-05,114070.0,114060.0,1.78600085]
[1757515450646,2.904e-05,114070.0,114060.0,1.90109921]
[1757515451130,2.904e-05,114070.0,114060.0,1.90009921]
[1757515451549,2.904e-05,114070.0,114060.0,1.90109921]
[1757515451758,2.904e-05,114070.0,114060.0,1.85109921]
[1757515451963,2.904e-05,114070.0,114060.0,1.85009921]
[1757515452208,2.904e-05,114070.0,114060.0,1.89809921]
[1757515452429,2.904e-05,114070.0,114060.0,1.75413921]
[1757515452857,2.904e-05,114070.0,114060.0,1.90409921]
[1757515454862,2.904e-05,114070.0,114060.0,1.79420476]
[1757515455218,2.904e-05,114070.0,114060.0,1.87258165]
[1757515455423,2.904e-05,114070.0,114060.0,1.86758165]
[1757515457462,2.904e-05,114070.0,114060.0,1.81758165]
[1757515457680,2.904e-05,114070.0,114060.0,1.86758165]
[1757515458326,2.904e-05,114070.0,114060.0,1.86754165]
[1757515459603,2.904e-05,114070.0,114060.0,1.59249507]
[1757515459822,2.904e-05,114070.0,114060.0,1.74241507]
[1757515461611,2.904e-05,114070.0,114060.0,1.59249507]
[1757515461827,2.904e-05,114070.0,114060.0,1.66403818]
[1757515462050,2.904e-05,114070.0,114060.0,1.24697982]
[1757515462270,2.904e-05,114070.0,114060.0,1.45956732]
[1757515462509,2.904e-05,114070.0,114060.0,1.46156732]
[1757515463132,2.904e-05,114070.0,114060.0,1.45756732]
[1757515463582,2.904e-05,114070.0,114060.0,1.45956732]
[1757515469252,2.904e-05,114070.0,114060.0,1.39689982]
[1757515472605,2.904e-05,114070.0,114060.0,1.47527671]
[1757515487480,2.904e-05,114070.0,114060.0,1.39689982]
[1757515488364,0.2047795,114090.0,114080.0,0.17531556]
[1757515488685,0.2047795,114090.0,114080.0,0.4778024]
[1757515488686,0.3359593,114090.0,114080.0,0.4778024]
[1757515488895,0.3359593,114090.0,114080.0,0.54504096]
[1757515489115,0.3359593,114090.0,114080.0,0.94504096]
[1757515490286,0.3359593,114090.0,114080.0,0.94289096]
[1757515490477,0.3359593,114090.0,114080.0,0.95161371]
[1757515490643,0.3359593,114090.0,114080.0,0.77629815]
[1757515492068,0.3359593,114090.0,114080.0,0.95161371]
[1757515494588,0.2068595,114090.0,114080.0,0.95376371]
[1757515496727,0.2068595,114090.0,114080.0,0.95161371]
[1757515497369,0.2068595,114090.0,114080.0,0.77629815]
[1757515497949,0.20160898,114090.0,114080.0,0.97982371]
[1757515498148,0.20160898,114090.0,114080.0,0.91689183]
[1757515498691,0.20160898,114090.0,114080.0,0.58864627]
[1757515498899,0.20685898,114090.0,114080.0,0.80139379]
[1757515499101,0.20685898,114090.0,114080.0,0.77842379]
[1757515499310,0.33595878,114090.0,114080.0,0.62647379]
[1757515499525,0.33595878,114090.0,114080.0,0.77627379]
[1757515500382,0.33595878,114090.0,114080.0,0.62647379]
[1757515500565,0.20685898,114090.0,114080.0,0.77627379]
[1757515500783,0.33595878,114090.0,114080.0,0.62647379]
[1757515500992,0.33595878,114090.0,114080.0,0.77627379]
[1757515500993,0.20685898,114090.0,114080.0,0.77627379]
[1757515501386,0.33595878,114090.0,114080.0,0.77627379]
[1757515501847,0.33595878,114090.0,114080.0,0.37627379]
[1757515502450,0.33595878,114090.0,114080.0,0.77627379]
[1757515503221,0.20685898,114090.0,114080.0,0.77627379]
[1757515503904,0.20160898,114090.0,114080.0,0.97827935]
[1757515504076,0.20160898,114090.0,114080.0,0.91533183]
[1757515504289,0.02630878,114090.0,114080.0,0.91828183]
[1757515504688,0.02630878,114090.0,114080.0,0.99694668]
[1757515505701,0.02630878,114090.0,114080.0,1.68694668]
[1757515505912,0.18403345,114110.0,114090.0,0.17528707]
[1757515506114,0.02642765,114110.0,114100.0,0.47986787]
[1757515506366,0.20169712,114110.0,114100.0,0.50517681]
[1757515506603,0.20169712,114110.0,114100.0,0.90517681]
[1757515506833,0.02642765,114110.0,114100.0,0.90517681]
[1757515507489,0.20169712,114110.0,114100.0,0.57718198]
[1757515507701,0.4002773,114110.0,114100.0,0.57718198]
[1757515507922,0.4002773,114110.0,114100.0,0.70239198]
[1757515508374,0.3972073,114110.0,114100.0,0.70239198]
[1757515508597,0.4002773,114110.0,114100.0,0.70239198]
[1757515508815,0.4002773,114110.0,114100.0,0.63942352]
[1757515509037,0.4002773,114110.0,114100.0,0.48966352]
[1757515509328,0.67157941,114110.0,114100.0,0.4]
[1757515509532,0.1753002,114090.0,114080.0,0.8043863]
[1757515509750,0.36882038,114090.0,114080.0,1.04162982]
[1757515509975,0.37388038,114090.0,114080.0,1.26631473]
[1757515510653,0.37388038,114090.0,114080.0,1.11659473]
[1757515510901,0.37388038,114090.0,114080.0,1.26731473]
[1757515511142,0.1803602,114090.0,114080.0,1.44253029]
[1757515511357,0.37388038,114090.0,114080.0,1.26621473]
[1757515512279,0.37388038,114090.0,114080.0,0.92621473]
[1757515513646,0.37388038,114090.0,114080.0,0.77649473]
[1757515513843,0.37388038,114090.0,114080.0,0.92621473]
[1757515514309,0.1803602,114090.0,114080.0,1.10367029]
[1757515514509,0.37388038,114090.0,114080.0,1.10367029]
[1757515516342,0.37388038,114090.0,114080.0,0.92621473]
[1757515516560,0.37388038,114090.0,114080.0,0.92835473]
[1757515517038,0.37388038,114090.0,114080.0,1.10367029]
[1757515517917,0.37388038,114090.0,114080.0,0.92835473]
[1757515518844,0.37388038,114090.0,114080.0,1.10367029]
[1757515519806,0.37388038,114090.0,114080.0,0.92835473]
[1757515520008,0.1803602,114090.0,114080.0,0.92835473]
[1757515520256,0.37388038,114090.0,114080.0,0.92835473]
[1757515521366,0.36882038,114090.0,114080.0,1.10367029]
[1757515521595,0.1753002,114090.0,114080.0,1.10367029]
[1757515521799,0.36882038,114090.0,114080.0,1.10367029]
[1757515522300,0.36882038,114090.0,114080.0,1.11949754]
[1757515522742,0.36882038,114090.0,114080.0,1.12244754]
[1757515523240,0.36882038,114090.0,114080.0,1.11949754]
[1757515523467,0.36882038,114090.0,114080.0,0.94418198]
[1757515524133,0.36882038,114090.0,114080.0,1.11949754]
[1757515524766,0.1753002,114090.0,114080.0,1.11949754]
[1757515524989,0.36882038,114090.0,114080.0,1.11949754]
[1757515526639,0.36882038,114090.0,114080.0,0.79446198]
[1757515526852,0.37388038,114090.0,114080.0,0.94414198]
[1757515528100,0.37388038,114090.0,114080.0,0.91959198]
[1757515529501,0.37388038,114090.0,114080.0,1.09490754]
[1757515530126,0.37388038,114090.0,114080.0,0.91959198]
[1757515533299,0.36882038,114090.0,114080.0,0.76959198]
[1757515533567,0.56755056,114090.0,114080.0,0.61777198]
[1757515533797,0.64425382,114090.0,114080.0,0.27988846]
[1757515533982,0.59386029,114090.0,114080.0,0.21692]
[1757515534398,0.59386029,114090.0,114080.0,0.61692]
[1757515537378,0.59386029,114090.0,114080.0,0.21692]
[1757515537809,0.59386029,114090.0,114080.0,0.61692]
[1757515540818,0.68139147,114090.0,114080.0,0.61692]
[1757515541150,0.68139147,114090.0,114080.0,0.21692]
[1757515541616,0.68139147,114090.0,114080.0,0.06728]
[1757515541858,0.68139147,114090.0,114060.0,0.02434]
[1757515541859,0.17533093,114070.0,114060.0,0.06738]
[1757515542083,0.17533093,114070.0,114060.0,0.30454352]
[1757515542286,0.56758129,114070.0,114060.0,0.30444352]
[1757515542740,0.2068544,114070.0,114060.0,0.30444352]
[1757515542967,0.59389476,114070.0,114060.0,0.30444352]
[1757515543447,0.68142594,114070.0,114060.0,0.15480352]
[1757515543667,0.68142594,114070.0,114060.0,0.21688]
[1757515543897,0.68242594,114070.0,114060.0,0.21688]
[1757515544687,0.68342594,114070.0,114060.0,0.21688]
[1757515545789,0.59589476,114070.0,114060.0,0.21688]
[1757515546468,1.15314494,114070.0,114060.0,0.06728]
[1757515546679,0.95962476,114070.0,114060.0,0.21688]
[1757515547599,0.5725844,114070.0,114060.0,0.21688]
[1757515547810,0.95962476,114070.0,114060.0,0.21688]
[1757515548024,1.04715594,114070.0,114060.0,0.21688]
[1757515550923,1.24067612,114070.0,114060.0,0.06728]
[1757515551057,1.24067612,114070.0,114060.0,0.21688]
[1757515551863,1.23967612,114070.0,114060.0,0.21688]
[1757515552279,1.24167612,114070.0,114060.0,0.21688]
[1757515552895,0.5153463,114060.0,114050.0,0.0001]
[1757515553100,1.20716802,114060.0,114050.0,0.14982353]
[1757515553311,1.20927802,114060.0,114050.0,0.14982353]
[1757515553498,1.21237802,114060.0,114050.0,0.14982353]
[1757515553703,1.21496814,114060.0,114050.0,0.14982353]
[1757515554117,1.21596814,114060.0,114050.0,0.14982353]
[1757515554524,1.23969814,114060.0,114050.0,0.14982353]
[1757515554727,1.24069814,114060.0,114050.0,0.14982353]
[1757515555140,1.21696814,114060.0,114050.0,0.14982353]
[1757515557356,1.24069814,114060.0,114050.0,0.14982353]
[1757515560587,1.21696814,114060.0,114050.0,0.14982353]
[1757515560799,1.02344796,114060.0,114050.0,0.14982353]
[1757515561029,0.93591678,114060.0,114050.0,0.14982353]
[1757515561249,0.93591678,114060.0,114050.0,0.15179353]
[1757515561703,0.93591678,114060.0,114050.0,0.14982353]
[1757515561918,0.93591678,114060.0,114050.0,0.00022353]
[1757515562144,0.93591678,114060.0,114050.0,0.14982353]
[1757515563244,0.97696314,114060.0,114050.0,0.14982353]
[1757515563683,0.93591678,114060.0,114050.0,0.14982353]
[1757515564813,0.93591678,114060.0,114050.0,0.00022353]
[1757515565018,0.93591678,114060.0,114050.0,0.14978353]
[1757515565256,0.95227265,114060.0,114050.0,0.14978353]
[1757515565481,0.56523229,114060.0,114050.0,0.14978353]
[1757515565682,0.95227265,114060.0,114050.0,0.14978353]
[1757515565886,0.95227281,114060.0,114050.0,0.14978353]
[1757515566366,0.82356753,114060.0,114050.0,0.00022353]
[1757515566591,0.82356753,114060.0,114050.0,0.14978353]
[1757515566838,0.91109871,114060.0,114050.0,0.14978353]
[1757515567482,0.82356753,114060.0,114050.0,0.14978353]
[1757515568312,0.56523245,114060.0,114050.0,0.14978353]
[1757515568744,0.48356753,114060.0,114050.0,0.14978353]
[1757515568918,0.48356753,114060.0,114050.0,0.15175353]
[1757515569139,0.47835753,114060.0,114050.0,0.15175353]
[1757515569337,0.30651384,114060.0,114050.0,0.11484907]
[1757515569563,0.45726138,114060.0,114050.0,0.23730705]
[1757515569995,0.45726138,114060.0,114050.0,0.08774705]
[1757515570210,0.45726138,114060.0,114050.0,0.23730705]
[1757515570440,0.45726138,114060.0,114050.0,0.00022353]
[1757515570666,0.45726138,114060.0,114050.0,0.14978353]
[1757515570877,0.45726138,114060.0,114050.0,0.00022353]
[1757515571110,1.02521086,114060.0,114050.0,0.00022353]
[1757515571328,1.03136233,114060.0,114050.0,0.14978353]
[1757515571527,1.03136281,114060.0,114050.0,0.14978353]
[1757515571757,1.05768249,114060.0,114050.0,0.14978353]
[1757515573488,1.05768249,114060.0,114050.0,0.00022353]
[1757515573696,1.05768249,114060.0,114050.0,0.14974353]
[1757515573921,1.20720249,114060.0,114050.0,0.14974353]
[1757515574136,1.23232907,114060.0,114050.0,0.00022353]
[1757515574366,1.31985259,114060.0,114050.0,0.00022353]
[1757515574815,1.34837129,114060.0,114050.0,0.00022353]
[1757515576668,1.19885129,114060.0,114050.0,0.00022353]
[1757515576883,1.34837129,114060.0,114050.0,0.00022353]
[1757515577297,0.96086867,114060.0,114050.0,0.00022353]
[1757515577515,1.34837129,114060.0,114050.0,0.00022353]
[1757515577719,1.34737129,114060.0,114050.0,0.00022353]
[1757515577940,1.34637129,114060.0,114050.0,0.00022353]
[1757515578198,1.36727501,114060.0,114050.0,0.00022353]
[1757515578584,1.34837129,114060.0,114050.0,0.00022353]
[1757515578796,1.36827565,114060.0,114050.0,0.00022353]
[1757515579003,1.21875565,114060.0,114050.0,0.00022353]
[1757515579242,1.34937129,114060.0,114050.0,0.00022353]
[1757515579957,1.17133259,114060.0,114050.0,0.00022353]
[1757515580167,0.83893414,114060.0,114050.0,0.14974353]
[1757515580386,0.96810168,114060.0,114050.0,0.14974353]
[1757515580604,0.99279168,114060.0,114050.0,0.00022353]
[1757515582116,0.99279457,114060.0,114050.0,0.00022353]
[1757515582330,1.08032575,114060.0,114050.0,0.00022353]
[1757515583904,1.22984575,114060.0,114050.0,0.00022353]
[1757515585676,1.08032575,114060.0,114050.0,0.00022353]
[1757515589643,1.22980575,114060.0,114050.0,0.00022353]
[1757515591756,1.22982673,114060.0,114050.0,0.00022353]
[1757515593211,0.84232411,114060.0,114050.0,0.00022353]
[1757515593435,1.14229555,114060.0,114050.0,0.00022353]
[1757515593658,0.95992153,114060.0,114050.0,0.00022353]
[1757515594024,0.98440153,114060.0,114050.0,0.00022353]
[1757515596121,0.98440412,114060.0,114050.0,0.00022353]
[1757515596336,0.98440426,114060.0,114050.0,0.00022353]
[1757515596545,1.22137544,114060.0,114050.0,0.00022353]
[1757515596753,1.22137558,114060.0,114050.0,0.00022353]
[1757515597089,1.327871,114060.0,114050.0,0.00022353]
[1757515598411,1.3563897,114060.0,114050.0,0.00022353]
[1757515601343,1.36254922,114060.0,114050.0,0.00022353]
[1757515604452,1.21310922,114060.0,114050.0,0.00022353]
[1757515604687,1.33399052,114060.0,114050.0,0.00022353]
[1757515605340,1.18459052,114060.0,114050.0,0.00022353]
[1757515605551,1.33399052,114060.0,114050.0,0.00022353]
[1757515609036,1.3340126,114060.0,114050.0,0.00022353]
[1757515609487,1.34222563,114060.0,114050.0,0.00022353]
[1757515609682,1.34222563,114060.0,114050.0,0.00012353]
[1757515609914,0.5154232,114010.0,114000.0,10.13799598]
[1757515610157,1.017877,114010.0,114000.0,10.0592854]
[1757515610387,1.167277,114010.0,114000.0,10.0592854]
[1757515610596,1.1936096,114010.0,114000.0,10.0592854]
[1757515611008,1.20237029,114010.0,114000.0,10.0592854]
[1757515611220,1.20249358,114010.0,114000.0,10.0612854]
[1757515611627,1.26859356,114010.0,114000.0,10.0592854]
[1757515611826,1.26959356,114010.0,114000.0,10.0592854]
[1757515612355,1.12019356,114010.0,114000.0,10.0592854]
[1757515612555,1.26959356,114010.0,114000.0,10.0592854]
[1757515612829,1.12019356,114010.0,114000.0,10.0592854]
[1757515613147,1.11594602,114010.0,114000.0,10.0592854]
[1757515613365,1.11594602,114010.0,114000.0,10.0612854]
[1757515614895,0.96654602,114010.0,114000.0,10.0612854]
[1757515615116,1.26959356,114010.0,114000.0,10.0612854]
[1757515615534,1.12019356,114010.0,114000.0,10.0612854]
[1757515615762,1.26959356,114010.0,114000.0,10.0612854]
[1757515617886,0.96654602,114010.0,114000.0,10.0612854]
[1757515618287,0.98287923,114010.0,114000.0,10.0612854]
[1757515618508,0.96654602,114010.0,114000.0,10.0612854]
[1757515618918,1.09571356,114010.0,114000.0,10.0612854]
[1757515619366,1.24511356,114010.0,114000.0,10.0612854]
[1757515619506,1.26144424,114010.0,114000.0,10.0612854]
[1757515619727,1.28620424,114010.0,114000.0,10.0612854]
[1757515620730,1.28620321,114010.0,114000.0,10.0612854]
[1757515620944,1.26140321,114010.0,114000.0,10.0612854]
[1757515621387,1.13223567,114010.0,114000.0,10.0612854]
[1757515622371,0.72454059,114010.0,114000.0,10.0612854]
[1757515622581,1.13223567,114010.0,114000.0,10.0612854]
[1757515625851,0.87390059,114010.0,114000.0,10.0612854]
[1757515626056,1.13223567,114010.0,114000.0,10.0612854]
[1757515628553,1.30647888,114010.0,114000.0,10.0612854]
[1757515628763,1.45583888,114010.0,114000.0,10.0612854]
[1757515629442,1.48059888,114010.0,114000.0,10.0612854]
[1757515629656,1.33123888,114010.0,114000.0,10.0612854]
[1757515629868,1.48059888,114010.0,114000.0,10.0612854]
[1757515630565,1.48059888,114010.0,114000.0,9.63440421]
[1757515630792,1.49075423,114010.0,114000.0,9.51011665]
[1757515631025,1.49075423,114010.0,114000.0,9.21983673]
[1757515631249,1.49075423,114010.0,114000.0,8.93040923]
[1757515631250,2.21999501,114010.0,114000.0,8.93040923]
[1757515631499,2.21999501,114010.0,114000.0,8.76868674]
[1757515631712,1.63805672,114010.0,114000.0,8.50448262]
[1757515631926,1.63805672,114010.0,114000.0,8.30091027]
[1757515632358,1.63705672,114010.0,114000.0,8.03043154]
[1757515632570,1.63805876,114010.0,114000.0,7.84607227]
[1757515632797,1.63805876,114010.0,114000.0,7.72484605]
[1757515633021,1.63805876,114010.0,114000.0,7.60555118]
[1757515633251,1.63805876,114010.0,114000.0,7.28576782]
[1757515633471,1.60954006,114010.0,114000.0,7.05669561]
[1757515633679,1.60954006,114010.0,114000.0,7.05469561]
[1757515634136,1.60954006,114010.0,114000.0,6.63472658]
[1757515634573,1.46018006,114010.0,114000.0,6.63472658]
[1757515634790,1.46019782,114010.0,114000.0,6.63472658]
[1757515635016,2.28737481,114010.0,114000.0,6.13345582]
[1757515635232,2.28737481,114010.0,114000.0,5.94717633]
[1757515635679,2.28737481,114010.0,114000.0,5.55114389]
[1757515635885,2.28737481,114010.0,114000.0,5.36722902]
[1757515636098,2.28737481,114010.0,114000.0,5.29266077]
[1757515636298,2.28737481,114010.0,114000.0,5.05042606]
[1757515636752,1.70543652,114010.0,114000.0,5.05042606]
[1757515636949,1.70443652,114010.0,114000.0,5.04942606]
[1757515637188,1.70443652,114010.0,114000.0,5.05042606]
[1757515637421,2.28637481,114010.0,114000.0,4.50859792]
[1757515637641,2.28637481,114010.0,114000.0,4.31166765]
[1757515637860,2.28637481,114010.0,114000.0,4.14587069]
[1757515637861,2.30522387,114010.0,114000.0,4.14587069]
[1757515638106,2.30522387,114010.0,114000.0,4.06290615]
[1757515638322,2.30522387,114010.0,114000.0,3.80404263]
[1757515638744,2.30522387,114010.0,114000.0,3.46491189]
[1757515638745,2.35522387,114010.0,114000.0,3.46491189]
[1757515638948,2.35622387,114010.0,114000.0,3.46491189]
[1757515639157,2.35622387,114010.0,114000.0,3.44371564]
[1757515639595,2.36080534,114010.0,114000.0,2.22673305]
[1757515640043,2.36080534,114010.0,114000.0,1.69256599]
[1757515640270,2.41080534,114010.0,114000.0,1.45153933]
[1757515640510,2.41080534,114010.0,114000.0,0.49980951]
[1757515640752,2.41080534,114010.0,114000.0,0.39591228]
[1757515640964,2.43438904,114010.0,114000.0,0.207724]
[1757515641190,2.43630904,114010.0,114000.0,0.207724]
[1757515641415,0.17545398,113990.0,113980.0,0.0002]
[1757515641644,1.67934596,113980.0,113970.0,0.14681157]
[1757515641873,1.91366277,113980.0,113970.0,0.14681157]
[1757515642101,2.06520277,113980.0,113970.0,0.14681157]
[1757515642320,1.94010743,113980.0,113970.0,0.14681157]
[1757515642536,2.09158743,113980.0,113970.0,0.14681157]
[1757515642754,2.02763861,113980.0,113970.0,0.14681157]
[1757515642977,1.59730032,113980.0,113970.0,0.14681157]
[1757515643200,1.44570032,113980.0,113970.0,0.14681157]
[1757515643714,1.6224269,113980.0,113970.0,0.14681157]
[1757515643943,2.20436519,113980.0,113970.0,0.14681157]
[1757515644646,2.27033128,113980.0,113970.0,0.14681157]
[1757515644871,2.11873128,113980.0,113970.0,0.14681157]
[1757515645105,1.1072147,113980.0,113970.0,0.14681157]
[1757515645331,2.27109128,113980.0,113970.0,0.14681157]
[1757515645615,1.68915299,113980.0,113970.0,0.14681157]
[1757515645807,1.68915868,113980.0,113970.0,0.14681157]
[1757515646035,1.10722039,113980.0,113970.0,0.14681157]
[1757515646245,1.68919868,113980.0,113970.0,0.14681157]
[1757515646458,2.27113697,113980.0,113970.0,0.14681157]
[1757515646669,2.27113697,113980.0,113940.0,0.15236]
[1757515646670,0.18427517,113960.0,113940.0,0.15236]
[1757515646881,0.18427517,113960.0,113930.0,0.15232]
[1757515646882,0.526975,113950.0,113930.0,0.15232]
[1757515647096,0.19397943,113940.0,113930.0,0.15451432]
[1757515647304,0.21032684,113940.0,113930.0,0.15451432]
[1757515647523,0.04269157,113940.0,113930.0,0.15451432]
[1757515647738,0.04269157,113940.0,113930.0,0.41758422]
[1757515647941,0.04269157,113940.0,113930.0,0.41585934]
[1757515648401,0.04279157,113940.0,113930.0,0.41585934]
[1757515648622,0.01644741,113940.0,113930.0,0.44542934]
[1757515649066,0.01644741,113940.0,113930.0,0.64542934]
[1757515649278,0.01644741,113940.0,113930.0,0.99542934]
[1757515649547,0.0001,113950.0,113940.0,0.17553098]
[1757515649757,0.0001,113950.0,113940.0,0.3304145]
[1757515649973,0.0001,113950.0,113940.0,0.3860945]
[1757515650392,0.0001,113950.0,113940.0,0.5383745]
[1757515650817,0.0001,113950.0,113940.0,0.5413745]
[1757515651661,0.0001,113950.0,113940.0,0.9413745]
[1757515652514,0.0001,113950.0,113940.0,0.9443745]
[1757515652728,0.0001,113950.0,113940.0,1.15722108]
[1757515652940,0.0001,113950.0,113940.0,1.30950108]
[1757515653639,0.0001,113950.0,113940.0,1.35950108]
[1757515653864,0.0001,113950.0,113940.0,1.40650108]
[1757515654089,0.0011,113950.0,113940.0,1.41254108]
[1757515654312,0.0011,113950.0,113940.0,1.40954108]
[1757515654524,0.0011,113950.0,113940.0,1.25722108]
[1757515654750,0.0011,113950.0,113940.0,1.41454108]
[1757515655380,0.0001,113950.0,113940.0,1.40854108]
[1757515655793,0.0001,113950.0,113940.0,1.26222108]
[1757515656020,0.0001,113950.0,113940.0,1.25722108]
[1757515656230,0.0001,113950.0,113940.0,1.20122108]
[1757515656444,0.0001,113950.0,113940.0,1.36270108]
[1757515656868,0.0001,113950.0,113940.0,1.21022108]
[1757515657094,0.0001,113950.0,113940.0,1.36270108]
[1757515657757,0.0001,113950.0,113940.0,1.36266108]
[1757515658285,0.0001,113950.0,113940.0,1.21022108]
[1757515658501,0.0001,113950.0,113940.0,1.36258108]
[1757515658718,0.0001,113950.0,113940.0,1.56258108]
[1757515658928,0.0001,113950.0,113940.0,1.77314108]
[1757515659351,0.0001,113950.0,113940.0,1.72314108]
[1757515659565,0.0001,113950.0,113940.0,1.77326108]
[1757515659776,0.0001,113950.0,113940.0,1.72322108]
[1757515660599,0.0001,113950.0,113940.0,1.57078108]
[1757515660810,0.0001,113950.0,113940.0,1.72322108]
[1757515661228,0.0001,113950.0,113940.0,1.5456545]
[1757515661440,0.0001,113950.0,113940.0,1.6980545]
[1757515662280,0.0001,113950.0,113940.0,1.72318108]
[1757515663986,0.0001,113950.0,113940.0,1.74951476]
[1757515665691,0.0001,113950.0,113940.0,1.74939476]
[1757515667566,0.0001,113950.0,113940.0,1.72306108]
[1757515668717,0.0001,113950.0,113940.0,1.72316108]
[1757515669190,0.0001,113950.0,113940.0,1.57088108]
[1757515669435,0.0001,113950.0,113940.0,1.72308108]
[1757515669698,0.0001,113950.0,113940.0,1.3457545]
[1757515669958,0.0001,113950.0,113940.0,1.1579945]
[1757515670469,0.0001,113950.0,113940.0,1.0057545]
[1757515670709,0.0001,113950.0,113940.0,1.1539545]
[1757515671420,0.0001,113950.0,113940.0,1.1489545]
[1757515671664,0.0001,113950.0,113940.0,1.1549545]
[1757515673028,0.0001,113950.0,113940.0,1.1589545]
[1757515675051,0.0001,113950.0,113940.0,1.1588545]
[1757515682911,0.0001,113950.0,113940.0,1.52398108]
[1757515683132,0.0001,113950.0,113940.0,1.85253638]
[1757515685635,0.0001,113950.0,113940.0,1.80253638]
[1757515688956,0.0001,113950.0,113940.0,1.80273638]
[1757515689601,0.0001,113950.0,113940.0,1.80265638]
[1757515690347,0.0001,113950.0,113940.0,1.65033638]
[1757515690591,0.0001,113950.0,113940.0,1.80261638]
[1757515691848,0.0001,113950.0,113940.0,1.65033638]
[1757515692075,0.0001,113950.0,113940.0,1.80257638]
[1757515692280,0.0001,113950.0,113940.0,1.80249638]
[1757515695296,0.0001,113950.0,113940.0,1.72394108]